bitfinex-derivatives/quotes_ETHF0:USTF0_20260123
["timestamp","ask_amount","ask_price","bid_price","bid_amount"]
[1769173047147,0.14423266,2938.8,2937.6,0.00329497]
[1769173047439,0.14423266,2938.6,2937.6,0.00329497]
[1769173048147,0.30325747,2938.5,2937.6,0.00329497]
[1769173048338,0.14423266,2938.6,2937.6,0.00329497]
[1769173048636,0.30324417,2938.5,2937.6,0.00329497]
[1769173048842,0.14423266,2938.6,2937.6,0.00329497]
[1769173049045,0.30324414,2938.5,2937.6,0.00329497]
[1769173049238,0.14423266,2938.6,2937.6,0.00329497]
[1769173049438,0.30325978,2938.5,2937.6,0.00329497]
[1769173049639,0.14423266,2938.6,2937.6,0.00329497]
[1769173049843,0.3032598,2938.5,2937.6,0.00329497]
[1769173050147,0.14423266,2938.6,2937.6,0.00329497]
[1769173050447,0.30324761,2938.5,2937.6,0.00329497]
[1769173050647,0.14423266,2938.6,2937.6,0.00329497]
[1769173050945,0.30324582,2938.5,2937.6,0.00329497]
[1769173051246,0.14423266,2938.6,2937.6,0.00329497]
[1769173051448,0.30323451,2938.5,2937.6,0.00329497]
[1769173051644,0.14423266,2938.6,2937.6,0.00329497]
[1769173051847,0.14121951,2938.4,2937.6,0.00329497]
[1769173070363,0.14121951,2938.7,2937.6,0.00329497]
[1769173079765,0.14121951,2939.1,2937.6,0.07246377]
[1769173079972,0.14121951,2939.1,2937.8,0.90757123]
[1769173081270,0.14121951,2939.1,2937.8,3.80757123]
[1769173083370,0.14121951,2939.1,2937.8,3.89111207]
[1769173083571,0.14121951,2939.1,2937.8,7.10917286]
[1769173084071,0.00510751,2939.4,2937.9,0.17041]
[1769173084272,0.00510751,2939.4,2937.9,3.30145003]
[1769173084670,0.00510751,2939.4,2938.1,0.1704]
[1769173084870,0.00510751,2939.4,2938.2,3.404]
[1769173085065,0.00510751,2939.4,2938.2,4.31157123]
[1769173085473,0.00510751,2939.4,2938.2,4.48197123]
[1769173087473,0.00510751,2939.4,2938.2,4.56587899]
[1769173089073,0.00510751,2939.4,2938.2,7.97287899]
[1769173096881,0.00510751,2939.4,2938.5,0.90717314]
[1769173100781,0.147678,2939.0,2937.7,3.57642]
[1769173100980,0.147678,2939.0,2937.8,3.44]
[1769173101383,0.147678,2939.0,2937.7,0.17042]
[1769173101584,0.147678,2939.0,2937.8,3.442]
[1769173101979,0.17543751,2939.4,2937.6,0.91046811]
[1769173101980,0.147678,2938.7,2937.6,0.00329497]
[1769173103279,0.147678,2938.7,2937.6,0.91046811]
[1769173112284,0.147678,2938.7,2937.6,0.00329497]
[1769173112792,0.14299096,2938.4,2937.6,0.00329497]
[1769173113688,0.14299096,2938.4,2937.1,3.456]
[1769173113885,0.14299096,2938.4,2937.0,0.90717314]
[1769173114092,0.14299096,2938.4,2937.0,4.36317314]
[1769173114592,0.14299096,2938.4,2937.0,4.3660629]
[1769173119900,0.14299096,2938.2,2937.0,0.9100629]
[1769173120099,0.14299096,2938.2,2937.0,0.00288976]
[1769173120695,0.00510751,2937.9,2937.0,0.00288976]
[1769173121501,0.00510751,2937.9,2937.0,0.9100629]
[1769173132813,0.00510751,2937.9,2937.0,0.00288976]
[1769173136312,0.00510751,2937.9,2937.0,0.9100629]
[1769173141317,0.00510751,2937.9,2937.0,0.00288976]
[1769173142217,1.06145321,2937.9,2937.0,0.00288976]
[1769173142523,0.90717314,2937.6,2936.5,3.408]
[1769173142724,1.2050813,2937.5,2936.5,3.408]
[1769173142922,0.90717314,2937.6,2936.5,3.408]
[1769173143120,1.20494904,2937.5,2936.5,3.408]
[1769173143421,0.00271472,2937.5,2936.5,0.00363065]
[1769173143914,0.90086113,2937.4,2936.5,0.00363065]
[1769173144114,0.15188728,2937.5,2936.5,0.00363065]
[1769173150824,0.15323714,2937.3,2936.5,0.00363065]
[1769173151020,0.15323714,2937.3,2935.9,0.90717314]
[1769173151224,0.00271472,2937.5,2936.5,0.90717314]
[1769173151619,0.15595186,2937.5,2936.2,0.90717314]
[1769173152018,0.15595186,2937.5,2936.2,0.91101675]
[1769173155930,0.00271472,2937.5,2936.5,0.90717314]
[1769173156131,0.90717314,2937.1,2936.2,0.00384361]
[1769173156532,0.15323714,2937.3,2936.2,0.00384361]
[1769173162343,0.00271472,2937.5,2936.2,0.00384361]
[1769173165331,0.30298614,2937.4,2936.2,0.00384361]
[1769173165536,0.15595186,2937.5,2936.2,0.00384361]
[1769173165735,0.4562364,2937.4,2936.2,0.00384361]
[1769173166035,0.15323714,2937.4,2936.2,0.00384361]
[1769173166340,0.45623217,2937.3,2936.2,0.00384361]
[1769173166640,0.15323714,2937.3,2936.2,0.00384361]
[1769173168437,0.45641446,2937.2,2936.2,0.00384361]
[1769173168637,0.15323714,2937.2,2936.2,0.00384361]
[1769173172332,0.45349314,2937.1,2936.2,0.00384361]
[1769173172641,0.14985868,2937.1,2936.2,0.00384361]
[1769173176939,0.3230134,2937.5,2936.2,0.00384361]
[1769173177145,1.35488945,2937.4,2936.2,0.00384361]
[1769173177338,0.30373023,2937.3,2936.2,0.00384361]
[1769173177536,0.45358891,2937.3,2936.2,0.00384361]
[1769173177736,0.14985868,2937.3,2936.2,0.00384361]
[1769173178133,0.14985868,2937.1,2936.2,0.00384361]
[1769173191642,0.14985868,2937.0,2935.7,3.04764079]
[1769173191849,0.14985868,2936.8,2935.6,3.04764079]
[1769173192047,0.14985868,2936.8,2935.5,3.04764079]
[1769173192346,0.14985868,2936.8,2935.5,5.94764079]
[1769173192542,0.14985868,2936.8,2935.5,5.95044728]
[1769173192850,0.00510751,2936.4,2935.5,2.90280649]
[1769173197354,0.00510751,2936.4,2935.6,3.539]
[1769173201157,0.00510751,2936.4,2935.5,0.00280649]
[1769173201350,0.00510751,2936.4,2935.6,3.55]
[1769173201957,0.00510751,2936.4,2935.5,0.00280649]
[1769173202257,0.15392006,2936.4,2935.5,0.00280649]
[1769173202854,0.00510751,2936.4,2935.5,0.00280649]
[1769173207559,0.14854546,2936.4,2935.5,3.56080649]
[1769173207762,0.14854546,2936.4,2935.5,0.00280649]
[1769173216362,0.14343795,2936.2,2934.9,3.562]
[1769173216963,0.14343795,2936.0,2934.7,3.562]
[1769173217362,0.14343795,2936.0,2934.7,3.56634562]
[1769173218269,0.14343795,2936.0,2934.7,0.00334562]
[1769173218466,0.14343795,2936.0,2934.7,3.56734562]
[1769173218869,0.14343795,2936.0,2934.9,0.90938788]
[1769173219069,0.14343795,2936.3,2935.2,0.90938788]
[1769173219271,0.14343795,2936.1,2935.2,0.90938788]
[1769173220573,0.14343795,2936.1,2934.9,0.90938788]
[1769173223269,0.14343795,2936.1,2935.2,0.90938788]
[1769173223568,0.17560751,2936.4,2935.5,0.90938788]
[1769173223766,0.00510751,2936.4,2935.8,0.90938788]
[1769173226561,0.00510751,2936.4,2935.5,0.90938788]
[1769173228768,0.00510751,2936.4,2935.8,0.90938788]
[1769173230467,0.14615267,2937.5,2936.2,0.90938788]
[1769173230674,1.20512913,2937.4,2936.2,0.90938788]
[1769173230878,1.20512913,2937.3,2936.2,0.90938788]
[1769173231176,1.20512913,2937.2,2936.2,0.90938788]
[1769173231375,0.90135686,2937.1,2936.2,0.90938788]
[1769173231672,0.14615267,2937.5,2936.2,0.90938788]
[1769173231880,1.20481718,2937.4,2936.4,0.00510751]
[1769173232070,0.14255727,2937.2,2936.4,0.00510751]
[1769173232275,0.90112322,2937.1,2936.4,0.00510751]
[1769173232468,0.14255727,2937.2,2936.4,0.00510751]
[1769173232670,0.90086792,2937.1,2936.4,0.00510751]
[1769173232873,0.14255727,2937.2,2936.4,0.00510751]
[1769173233072,1.05194515,2937.0,2935.8,3.07054]
[1769173233271,0.14255727,2936.9,2935.5,0.90938788]
[1769173234077,0.90074949,2936.8,2935.5,0.90938788]
[1769173234271,0.14255727,2936.8,2935.5,0.90938788]
[1769173234471,0.00510751,2936.5,2935.5,0.90938788]
[1769173235169,0.14255727,2936.2,2934.8,1.07997788]
[1769173235674,0.14255727,2936.2,2934.8,3.97997788]
[1769173235878,0.14255727,2936.2,2935.1,0.90938788]
[1769173236476,0.14255727,2937.3,2935.9,0.90938788]
[1769173236673,0.14255727,2937.1,2935.9,0.90938788]
[1769173236873,1.04315527,2937.0,2935.9,0.90938788]
[1769173237073,0.14255727,2937.0,2935.9,0.90938788]
[1769173239180,0.14255727,2937.4,2936.2,0.90938788]
[1769173239384,0.89619135,2937.3,2936.2,0.90938788]
[1769173239681,0.89619135,2937.2,2936.2,0.90938788]
[1769173239980,0.14255727,2937.4,2936.2,0.90938788]
[1769173240183,0.89618553,2937.3,2936.2,0.90938788]
[1769173240382,0.14255727,2937.4,2936.2,0.90938788]
[1769173240578,1.03856987,2937.3,2936.2,0.90938788]
[1769173240782,0.14255727,2937.2,2936.2,0.90938788]
[1769173241081,0.14255727,2937.2,2936.0,3.584]
[1769173241583,0.14255727,2937.2,2935.9,0.90938788]
[1769173243985,0.14255727,2937.2,2936.2,0.90938788]
[1769173244186,0.14255727,2937.2,2936.5,0.90938788]
[1769173244488,0.14255727,2937.6,2936.5,0.90938788]
[1769173248277,0.14255727,2937.6,2936.8,0.90938788]
[1769173248485,0.14255727,2937.6,2936.8,0.91296593]
[1769173248788,0.14255727,2938.0,2936.8,0.91296593]
[1769173251190,0.14527199,2937.5,2936.8,0.00357805]
[1769173251390,0.00271472,2937.5,2936.8,0.00357805]
[1769173251590,0.00271472,2937.5,2936.8,0.91296593]
[1769173256600,0.14255727,2938.3,2937.2,0.90938788]
[1769173256803,0.89536254,2938.2,2937.2,0.90938788]
[1769173257094,0.14255727,2938.3,2937.2,0.90938788]
[1769173257301,1.34091207,2938.2,2937.2,0.90938788]
[1769173257496,0.30311575,2938.1,2937.4,0.00510751]
[1769173257701,0.00256615,2938.1,2937.4,0.00510751]
[1769173262609,0.00256615,2938.1,2937.5,0.90938788]
[1769173262809,0.14612525,2938.6,2937.5,0.90938788]
[1769173263015,1.19853956,2938.5,2937.5,0.90938788]
[1769173263199,0.14612525,2938.6,2937.5,0.90938788]
[1769173263710,0.1505053,2938.6,2937.5,0.90938788]
[1769173267212,0.00438005,2938.6,2937.8,0.90938788]
[1769173270612,0.14798362,2939.0,2938.1,0.90938788]
[1769173270812,0.14798362,2939.4,2938.4,0.90938788]
[1769173271210,0.14798362,2939.4,2938.1,0.90938788]
[1769173271714,0.15171062,2939.4,2938.1,0.90938788]
[1769173279636,0.15171062,2939.4,2938.4,0.90938788]
[1769173280435,0.003727,2939.4,2938.4,0.90938788]
[1769173280831,0.003727,2939.4,2938.0,0.17041]
[1769173281026,0.003727,2939.4,2938.0,1.1546486]
[1769173283235,0.15171062,2939.4,2938.0,1.1546486]
[1769173283942,0.15171062,2939.4,2938.0,4.5616486]
[1769173284435,0.15171062,2939.4,2937.5,0.17043]
[1769173284640,0.15171062,2939.4,2937.5,3.57743]
[1769173285140,0.89470954,2939.3,2937.5,3.57743]
[1769173285433,0.14798362,2939.2,2937.5,3.57743]
[1769173285631,0.14798362,2939.2,2937.6,0.17043]
[1769173286733,0.14798362,2939.2,2937.5,3.407]
[1769173287039,0.14798362,2939.2,2937.8,1.07765864]
[1769173290535,0.003727,2939.4,2937.9,0.17041]
[1769173290941,0.003727,2939.4,2938.0,0.17041]
[1769173294561,0.003727,2939.4,2938.2,0.90723864]
[1769173295042,0.003727,2939.4,2938.2,1.07763864]
[1769173295442,0.003727,2939.4,2938.3,0.17039]
[1769173296245,6.498,2939.8,2938.4,0.24369669]
[1769173297043,0.14010557,2940.0,2938.6,0.90723864]
[1769173297249,1.20047573,2939.9,2938.6,0.90723864]
[1769173297450,0.14377152,2940.0,2938.6,0.90723864]
[1769173297748,1.20048558,2939.9,2938.6,0.90723864]
[1769173297951,0.14377152,2940.0,2939.0,0.00510751]
[1769173298250,0.89707266,2939.9,2939.0,0.00887978]
[1769173298551,0.14377152,2940.0,2939.0,0.00887978]
[1769173298742,1.03713661,2939.9,2939.0,0.00887978]
[1769173298946,0.14010557,2939.9,2939.0,0.00887978]
[1769173299846,0.31040557,2939.9,2939.0,0.00887978]
[1769173300052,0.14521308,2939.7,2938.1,0.1704]
[1769173300253,0.14010557,2939.5,2938.1,0.1704]
[1769173301048,0.14010557,2939.5,2938.1,0.17405933]
[1769173302245,0.14010557,2939.5,2938.2,1.07762864]
[1769173302450,0.00510751,2939.7,2938.4,0.17038]
[1769173303354,0.14521308,2939.7,2938.4,0.17038]
[1769173304349,0.14521308,2939.7,2938.1,3.05130012]
[1769173304550,0.31042557,2939.5,2938.1,0.00365933]
[1769173304757,0.14010557,2939.3,2938.1,0.00365933]
[1769173305056,0.14010557,2939.1,2938.1,0.00365933]
[1769173305258,0.14010557,2938.9,2938.1,0.00365933]
[1769173306955,0.17033,2939.4,2938.1,0.00365933]
[1769173306956,0.14010557,2939.3,2938.1,0.00365933]
[1769173307161,1.20059625,2939.2,2938.1,0.00365933]
[1769173307456,0.14010557,2939.2,2938.1,0.00365933]
[1769173307761,0.00510751,2939.7,2938.7,0.17037]
[1769173310260,0.14521308,2939.7,2938.2,3.21804079]
[1769173310464,0.14521308,2939.7,2938.2,0.1704]
[1769173311364,0.14521308,2939.7,2938.3,0.17039]
[1769173315372,0.14521308,2939.7,2938.1,0.00365933]
[1769173315565,0.31042557,2939.5,2938.1,0.00365933]
[1769173315770,0.14010557,2939.3,2938.1,0.00365933]
[1769173322474,0.14306618,2939.1,2938.1,0.00365933]
[1769173333679,0.32057976,2939.5,2938.1,0.00365933]
[1769173333885,0.15025976,2939.5,2938.3,0.17039]
[1769173334187,0.00510751,2939.7,2938.4,0.17038]
[1769173336689,0.00510751,2939.7,2938.4,0.08140468]
[1769173336887,0.00510751,2939.7,2938.6,0.17037]
[1769173337587,0.00510751,2939.7,2938.7,2.9]
[1769173339086,0.15536727,2939.7,2938.7,2.9]
[1769173339287,0.15536727,2939.7,2938.1,4.27035644]
[1769173339288,0.32567727,2939.7,2938.1,4.27035644]
[1769173339590,0.15025976,2939.5,2938.1,0.00365933]
[1769173339793,0.15025976,2939.3,2938.1,0.00365933]
[1769173343298,0.32058976,2939.3,2938.1,0.00365933]
[1769173343498,0.15025976,2939.1,2938.1,0.00365933]
[1769173345795,0.15025976,2938.9,2937.6,2.9]
[1769173346498,0.15025976,2938.9,2937.3,0.17045]
[1769173346699,0.15025976,2938.9,2937.3,0.17356246]
[1769173346898,0.32062976,2938.7,2937.3,0.00311246]
[1769173347086,1.3541506,2938.6,2937.3,0.00311246]
[1769173347288,0.15025976,2938.5,2937.3,0.00311246]
[1769173348097,0.15536727,2938.2,2937.3,0.00311246]
[1769173348891,0.00510751,2938.2,2937.3,0.00311246]
[1769173350798,0.15025976,2939.1,2937.3,0.00311246]
[1769173351099,0.17034,2939.2,2937.3,0.00311246]
[1769173351100,0.15025976,2938.9,2937.5,0.00510751]
[1769173366612,0.32061976,2938.9,2937.5,0.00510751]
[1769173366811,0.14221164,2938.8,2937.5,0.00510751]
[1769173368408,0.14221164,2938.6,2937.5,0.00510751]
[1769173373321,0.89951302,2938.5,2937.5,0.00510751]
[1769173373514,0.14221164,2938.5,2937.5,0.00510751]
[1769173373820,0.14221164,2938.4,2937.5,0.00510751]
[1769173393336,0.13958993,2938.2,2937.5,0.00510751]
[1769173393535,0.13958993,2938.2,2937.3,0.00311246]
[1769173393735,0.14469744,2938.2,2937.3,0.00311246]
[1769173395432,0.14469744,2938.2,2937.4,0.90786545]
[1769173402946,0.00510751,2938.2,2937.3,0.00311246]
[1769173406746,0.14469744,2938.2,2937.3,0.00311246]
[1769173411552,0.14469744,2938.2,2936.7,11.1538179]
[1769173411744,0.13958993,2938.0,2936.7,3.83948]
[1769173412547,0.13958993,2938.0,2936.7,3.84296875]
[1769173412954,0.13958993,2938.0,2936.7,4.75068746]
[1769173413154,0.13958993,2938.0,2936.7,7.79832825]
[1769173415543,0.13958993,2938.0,2936.7,6.89060954]
[1769173416152,0.13958993,2938.0,2936.7,3.84296875]
[1769173429960,0.00510751,2938.2,2936.7,3.92026787]
[1769173430361,0.15056701,2938.2,2936.7,3.92026787]
[1769173431660,0.15056701,2938.2,2936.7,0.17396875]
[1769173431866,0.1454595,2938.0,2936.7,3.70248875]
[1769173433964,0.00510751,2938.2,2936.7,4.85682889]
[1769173434668,0.15056701,2938.2,2936.7,4.85682889]
[1769173434967,0.15056701,2938.2,2936.8,0.17048]
[1769173437369,0.15056701,2938.2,2936.8,0.24683262]
[1769173437674,0.15056701,2938.2,2936.8,3.29447341]
[1769173438073,0.00510751,2938.2,2937.0,0.07634143]
[1769173440276,0.00510751,2938.2,2937.0,3.12398222]
[1769173440479,0.00510751,2938.2,2937.1,3.9553595]
[1769173441580,0.00510751,2938.2,2937.1,4.1258195]
[1769173441881,0.15056701,2938.2,2937.0,3.04764079]
[1769173442076,0.15056701,2938.2,2936.9,3.717]
[1769173442273,0.14464125,2938.0,2936.9,3.717]
[1769173442478,0.14464125,2937.8,2936.9,3.717]
[1769173442674,0.14786055,2937.8,2936.9,3.717]
[1769173444686,0.14786055,2937.8,2936.7,0.00348875]
[1769173445284,0.14464125,2937.6,2936.7,0.00348875]
[1769173457593,0.0032193,2937.8,2936.7,0.00348875]
[1769173459195,0.00510751,2938.2,2936.8,0.07778858]
[1769173459390,0.14693974,2938.2,2936.9,0.17047]
[1769173459588,0.14183223,2938.0,2936.7,3.74148875]
[1769173459990,0.14561545,2938.0,2936.7,3.74148875]
[1769173460192,0.14561545,2938.0,2936.7,0.00348875]
[1769173460392,0.14183223,2937.8,2936.7,0.00348875]
[1769173466698,0.14183223,2937.6,2936.7,0.00348875]
[1769173481413,0.14183223,2937.6,2936.8,0.90843482]
[1769173481610,0.15078455,2937.9,2937.1,0.90843482]
[1769173482010,0.00378322,2938.0,2937.1,0.90843482]
[1769173482811,0.00378322,2938.0,2937.4,0.90843482]
[1769173483517,0.00378322,2938.0,2937.1,0.90843482]
[1769173486112,0.00378322,2938.0,2937.4,0.90843482]
[1769173486311,0.00510751,2938.2,2937.4,0.90843482]
[1769173487323,0.00939478,2938.2,2937.4,0.90843482]
[1769173490522,0.00939478,2938.2,2937.7,0.90843482]
[1769173491327,0.15078455,2938.7,2937.7,0.90843482]
[1769173491528,0.15078455,2938.7,2937.7,0.91354233]
[1769173492127,0.15475749,2938.7,2937.7,0.91354233]
[1769173497241,0.00397294,2938.7,2937.7,0.91354233]
[1769173498541,0.15475749,2938.7,2937.7,0.91354233]
[1769173499136,0.15475749,2938.7,2937.7,0.00510751]
[1769173499341,0.15078455,2938.5,2937.7,0.00510751]
[1769173501036,0.15078455,2938.2,2936.9,1.07890482]
[1769173505947,0.15078455,2938.2,2936.9,0.90843482]
[1769173506643,0.89828206,2938.1,2936.9,0.90843482]
[1769173506840,0.13058794,2938.0,2936.9,0.90843482]
[1769173507245,0.13058794,2938.0,2936.7,0.00348875]
[1769173511751,0.00510751,2938.4,2937.7,0.61809874]
[1769173511955,0.00510751,2938.4,2937.1,0.17046]
[1769173511956,0.13569545,2938.4,2937.4,0.90843482]
[1769173512856,0.13569545,2938.4,2937.1,1.07889482]
[1769173513245,0.13569545,2938.4,2937.1,0.90843482]
[1769173513547,0.13058794,2938.2,2937.1,0.90843482]
[1769173515247,0.13058794,2938.1,2936.8,1.07891482]
[1769173515453,0.13058794,2938.1,2936.8,0.90843482]
[1769173515853,0.13058794,2938.1,2936.7,0.00348875]
[1769173518351,0.13058794,2938.1,2937.1,0.90843482]
[1769173518557,0.13058794,2938.1,2937.4,0.90843482]
[1769173521149,0.00510751,2938.4,2937.4,0.90843482]
[1769173526963,0.00510751,2938.4,2937.1,0.17046]
[1769173535362,0.00510751,2938.4,2937.1,0.24396713]
[1769173535562,0.00510751,2938.4,2937.2,0.24395713]
[1769173537461,0.00510751,2938.4,2937.2,0.17045]
[1769173537663,0.1470789,2938.4,2937.0,3.04764079]
[1769173537865,0.1470789,2938.4,2936.9,3.733]
[1769173539362,0.14197139,2938.2,2936.8,3.21812079]
[1769173539562,0.3054221,2938.3,2936.8,3.21812079]
[1769173539563,0.14197139,2938.0,2936.8,0.17048]
[1769173542666,0.00510751,2938.4,2936.9,0.17047]
[1769173542869,1.20404583,2938.3,2936.9,0.17047]
[1769173543064,0.30548825,2938.2,2936.9,0.17047]
[1769173543267,0.1470789,2938.4,2936.9,0.17047]
[1769173543469,1.204048,2938.3,2936.9,0.17047]
[1769173543667,0.30550781,2938.2,2936.9,0.17047]
[1769173543867,0.1470789,2938.4,2936.9,0.17047]
[1769173544174,0.3055078,2938.3,2936.9,0.17047]
[1769173544369,0.1470789,2938.4,2936.9,0.17047]
[1769173544571,0.30550732,2938.3,2936.9,1.07832958]
[1769173544772,0.1470789,2938.4,2936.9,1.07832958]
[1769173544969,0.30550557,2938.3,2936.9,1.07832958]
[1769173545167,0.1470789,2938.4,2936.9,1.07832958]
[1769173545368,0.14197139,2938.2,2936.9,1.07832958]
[1769173545570,0.14197139,2938.2,2936.9,0.17047]
[1769173552981,0.14197139,2938.2,2937.0,0.17047]
[1769173553781,0.00510751,2938.4,2937.1,0.17046]
[1769173554079,0.00510751,2938.4,2937.3,1.07830958]
[1769173554276,0.00510751,2938.4,2937.3,4.12595037]
[1769173554975,0.00510751,2938.4,2937.3,1.07830958]
[1769173555476,0.00510751,2938.4,2937.3,4.12595037]
[1769173555678,0.00510751,2938.4,2937.3,1.07830958]
[1769173556078,0.00510751,2938.4,2937.3,4.12595037]
[1769173556578,0.00510751,2938.4,2937.3,1.07830958]
[1769173557781,0.00510751,2938.4,2937.3,4.12595037]
[1769173558882,0.00510751,2938.4,2937.3,1.07830958]
[1769173563785,0.00510751,2938.4,2937.4,0.17044]
[1769173563991,0.00397294,2938.7,2937.7,0.90785958]
[1769173567594,0.00397294,2938.7,2937.7,1.07827958]
[1769173567793,0.1374473,2939.5,2937.7,1.07827958]
[1769173567998,0.1374473,2939.3,2937.7,1.07827958]
[1769173568199,0.17032,2939.6,2937.7,1.07827958]
[1769173568200,0.1374473,2939.1,2937.7,1.07827958]
[1769173568795,0.14072524,2939.1,2937.7,1.07827958]
[1769173570296,0.14072524,2939.1,2937.8,0.17042]
[1769173574806,0.1374473,2939.5,2938.1,1.14434554]
[1769173575395,0.1374473,2939.5,2938.1,1.07825958]
[1769173576106,0.1406045,2939.5,2938.1,1.07825958]
[1769173577806,0.1406045,2939.5,2938.2,0.1704]
[1769173588910,0.1406045,2939.5,2938.4,0.90723751]
[1769173597213,0.0031572,2939.5,2938.7,0.90723751]
[1769173597406,0.1444255,2939.8,2938.7,0.90723751]
[1769173598322,0.14808129,2939.8,2938.7,0.90723751]
[1769173599119,0.00365579,2939.8,2938.7,0.90723751]
[1769173599706,0.00365579,2939.8,2939.0,0.90723751]
[1769173599909,0.00365579,2939.8,2939.0,0.91096472]
[1769173600107,0.1444255,2940.2,2939.0,0.91096472]
[1769173600309,1.20409254,2940.1,2939.0,0.91096472]
[1769173600513,0.30557813,2940.0,2939.1,0.00510751]
[1769173600818,0.1444255,2940.2,2939.1,0.00510751]
[1769173601015,1.34850824,2940.1,2939.1,0.00510751]
[1769173601214,1.20408274,2940.0,2939.1,0.00510751]
[1769173601418,0.14839883,2940.1,2939.1,0.00510751]
[1769173601611,1.20406341,2940.0,2939.1,0.00510751]
[1769173601812,0.14839883,2940.1,2939.1,0.00510751]
[1769173602011,1.20406348,2940.0,2939.1,0.00510751]
[1769173602212,0.14839883,2940.1,2939.1,0.00510751]
[1769173602413,1.20409044,2940.0,2939.1,0.00510751]
[1769173602622,0.14839883,2940.1,2939.1,0.00510751]
[1769173602813,1.20409017,2940.0,2939.1,0.00510751]
[1769173603014,0.14839883,2940.1,2939.1,0.00510751]
[1769173603215,1.34853342,2940.0,2939.1,0.00510751]
[1769173603513,0.1444255,2939.7,2939.0,0.00372721]
[1769173603821,0.1444255,2939.4,2938.3,0.90723751]
[1769173604613,0.1444255,2939.4,2938.3,0.91050261]
[1769173605722,0.14953301,2939.8,2938.9,0.90723751]
[1769173607918,0.14953301,2939.8,2938.3,3.05090589]
[1769173607919,0.1444255,2939.1,2938.3,0.0032651]
[1769173610216,0.1444255,2938.8,2937.6,0.90723751]
[1769173611225,0.1444255,2938.8,2937.6,0.91023323]
[1769173612229,0.1444255,2938.2,2937.6,0.00299572]
[1769173613130,0.14953301,2938.2,2937.6,0.00299572]
[1769173623928,0.00510751,2938.2,2937.6,0.00299572]
[1769173624131,0.00510751,2938.2,2937.7,0.90723751]
[1769173624832,0.14105072,2938.6,2937.7,0.91234502]
[1769173625337,0.14105072,2938.6,2937.6,0.00299572]
[1769173625338,0.14105072,2938.5,2937.6,0.00299572]
[1769173626839,0.1379301,2938.2,2937.6,0.00299572]
[1769173630339,0.1379301,2938.2,2936.8,0.90723751]
[1769173631444,0.1379301,2938.2,2936.8,0.91004174]
[1769173632947,0.1379301,2938.2,2937.1,0.90723751]
[1769173638641,0.00510751,2938.3,2937.4,0.90723751]
[1769173639143,0.90723751,2937.5,2936.8,0.00280423]
[1769173639341,0.90968075,2937.5,2936.8,0.00280423]
[1769173641645,0.00244324,2937.5,2936.8,0.00280423]
[1769173647245,0.3083301,2938.1,2936.8,0.00280423]
[1769173647452,0.1379301,2938.0,2936.8,0.00280423]
[1769173648248,0.14089521,2938.0,2936.8,0.00280423]
[1769173653059,0.14089521,2938.0,2936.8,0.17328423]
[1769173663957,0.14089521,2938.0,2936.8,0.00280423]
[1769173668158,0.30553599,2937.9,2936.8,0.00280423]
[1769173668358,0.14221992,2937.8,2936.8,0.00280423]
[1769173680179,0.00296511,2938.0,2936.8,0.00280423]
[1769173680180,0.00296511,2938.0,2936.8,0.17328423]
[1769173680484,0.00296511,2938.0,2936.9,3.04764079]
[1769173681582,0.14518503,2938.0,2936.8,0.00280423]
[1769173682081,0.14422967,2937.8,2936.8,0.00280423]
[1769173682275,0.14422967,2937.6,2936.2,11.0833379]
[1769173682471,0.14422967,2937.6,2936.2,6.81664079]
[1769173683079,0.14422967,2937.6,2936.2,6.98715079]
[1769173683274,0.14422967,2937.6,2936.3,3.04764079]
[1769173684274,0.14422967,2937.6,2936.4,3.04764079]
[1769173684679,0.14719478,2938.0,2936.5,3.04764079]
[1769173684979,0.14719478,2938.0,2936.6,3.04764079]
[1769173686381,0.14719478,2938.0,2936.6,3.13163849]
[1769173686585,0.00510751,2938.3,2937.1,0.90819528]
[1769173686786,0.00510751,2938.3,2937.1,3.95583607]
[1769173686987,0.00510751,2938.3,2937.1,3.04764079]
[1769173687381,0.00510751,2938.3,2937.1,3.21810079]
[1769173687588,0.00510751,2938.3,2937.3,0.17045]
[1769173687787,0.00823136,2938.3,2937.3,3.21809079]
[1769173688987,0.00823136,2938.3,2937.4,2.9]
[1769173691592,0.00823136,2938.3,2937.3,0.17045]
[1769173691991,0.15245695,2938.3,2936.9,3.04764079]
[1769173692189,0.15245695,2938.3,2936.9,5.94764079]
[1769173692790,0.15245695,2938.3,2936.9,2.9]
[1769173697096,0.15245695,2938.3,2936.8,0.17048]
[1769173697301,0.15245695,2938.3,2936.4,7.3143379]
[1769173697601,0.14422559,2938.1,2936.5,2.9]
[1769173698391,0.14422559,2937.9,2936.5,2.9]
[1769173699502,0.14422559,2937.9,2936.6,0.17049]
[1769173700998,0.14422559,2937.9,2936.6,3.21813079]
[1769173701600,0.15245695,2938.3,2936.7,1.07867528]
[1769173704895,0.15245695,2938.3,2936.7,0.17048]
[1769173705100,0.15245695,2938.3,2936.2,3.2221587]
[1769173705101,0.14422559,2938.0,2936.2,3.2221587]
[1769173705401,0.14422559,2937.8,2936.2,0.17451791]
[1769173705595,0.14422559,2937.8,2936.2,3.07451791]
[1769173705994,0.14422559,2937.8,2936.2,0.17451791]
[1769173706207,0.14422559,2937.6,2936.2,0.17451791]
[1769173711012,0.14422559,2937.6,2936.3,0.90845418]
[1769173711213,0.14422559,2937.3,2936.2,0.00400791]
[1769173714311,0.14422559,2937.3,2936.3,0.90845418]
[1769173719617,0.1375357,2937.8,2936.3,0.90845418]
[1769173722418,0.1375357,2937.8,2936.6,0.90845418]
[1769173732627,0.1375357,2938.2,2936.9,0.90845418]
[1769173732829,0.1375357,2938.2,2936.6,0.08122592]
[1769173732830,0.14576706,2938.3,2937.2,0.90845418]
[1769173739834,0.14576706,2938.3,2936.9,0.90845418]
[1769173742339,0.13955328,2938.1,2936.8,0.17048]
[1769173742533,1.04800746,2937.9,2936.3,8.22279208]
[1769173742836,0.13955328,2937.8,2936.3,3.95609497]
[1769173743232,0.13955328,2937.8,2936.3,0.90845418]
[1769173744136,0.13955328,2937.8,2936.3,3.95609497]
[1769173749938,0.13955328,2937.8,2936.6,0.90845418]
[1769173753241,0.90845418,2938.2,2936.9,0.90845418]
[1769173753438,0.3306478,2938.3,2936.9,0.90845418]
[1769173754038,0.1602578,2938.3,2937.2,0.90845418]
[1769173754245,0.00823136,2938.3,2937.2,0.90845418]
[1769173757548,0.00823136,2938.3,2937.0,0.90845418]
[1769173757749,0.90845418,2938.2,2936.9,0.17047]
[1769173758649,1.06048062,2938.2,2936.9,0.17047]
[1769173760357,0.15202644,2938.2,2936.9,0.17047]
[1769173760558,0.15202644,2938.2,2937.1,0.90845418]
[1769173761558,0.00823136,2938.3,2937.4,0.90845418]
[1769173762656,0.00823136,2938.3,2937.7,0.90845418]
[1769173762851,6.65002644,2939.0,2937.6,0.00510751]
[1769173762852,0.15202644,2939.0,2937.6,0.00510751]
[1769173763162,0.15202644,2938.7,2937.6,0.00510751]
[1769173763959,0.15602094,2938.7,2937.6,0.00510751]
[1769173777060,0.13846648,2938.5,2937.6,0.00510751]